Cogmind - Beta 15 @@@ ROGUE MODE // 2025.09.01 @ 05:07:38 Player: shapeshifter Result: Destroyed by Y-45 Defender with Heavy Assault Rifle Performance ------------- Evolutions (0) 0 Regions Visited (3) 600 Robots Destroyed (27) 135 Value Destroyed (386) 386 Prototype IDs (0) 0 Alien Tech Used (0) 0 Bonus (0) 0 TOTAL SCORE: 1121 Bonus ------- None Cogmind --------- Core Integrity 0/250 Matter 300/300 Energy 89/100 System Corruption 0% Temperature Cool (17) Movement Core (750) Ox14 Location -9/Recycling Parts ------- > --- POWER (1) -------- (None) > --- PROPULSION (2) --- (None) > --- UTILITY (2) ------ High-capacity Storage Unit > --- WEAPON (2) ------- Medium Laser Light Assault Rifle > --- INVENTORY (20) --- Light Ion Engine Wheel Wheel Compact Wheel Peak State ------------ > --- POWER ------------ Ion Engine > --- PROPULSION ------- Light Treads Light Treads > --- UTILITY ---------- Small Storage Unit Seismic Detector > --- WEAPON ----------- EM Pulse Gun Light Assault Rifle > --- INVENTORY -------- Light Ion Engine Wheel Wheel Medium Laser [Rating: 7] Favorites ----------- Power Ion Engine Engine Ion Engine Propulsion Light Treads Treads Light Treads Wheel Wheel Utility Seismic Detector Device Seismic Detector Storage Small Storage Unit Weapon Light Assault Rifle Energy Gun EM Pulse Gun Ballistic Gun Light Assault Rifle Build | -11 -10 -10 -9 ------- Run | Yrd Mat Sub Rec Slots Evolved . | . . . . Power . | . . . . Propulsion . | . . . . Utility . | . . . . Weapon . | . . . . Parts Attached 13 | 8 3 2 . Power 1 | 1 . . . Engine 1 | 1 . . . Core . | . . . . Reactor . | . . . . Propulsion 3 | 2 . 1 . Treads 2 | 2 . . . Leg . | . . . . Wheel 1 | . . 1 . Hover . | . . . . Flight . | . . . . Utility 4 | 2 2 . . Device 1 | 1 . . . Storage 3 | 1 2 . . Processor . | . . . . Hackware . | . . . . Protection . | . . . . Artifact . | . . . . Weapon 5 | 3 1 1 . Energy Gun 2 | 2 . . . Energy Cannon . | . . . . Ballistic Gun 3 | 1 1 1 . Ballistic Cannon . | . . . . Launcher . | . . . . Special Weapon . | . . . . Impact Weapon . | . . . . Slashing Weapon . | . . . . Piercing Weapon . | . . . . Special Melee Weapon . | . . . . Unidentified Prototypes . | . . . . Parts Lost 8 | . 1 6 1 Power 1 | . . 1 . Propulsion 3 | . . 2 1 Utility 1 | . . 1 . Weapon 3 | . 1 2 . Highest Loss Streak 6 | . 1 6 1 To Critical Strikes . | . . . . Average Backups 5 | 3 6 6 4 Power . | . 1 1 1 Propulsion 3 | 1 3 3 3 Utility . | . . . . Weapon 1 | 1 1 1 . Tool/Special . | . . . . Unused Backups 4 | . . . 4 Power 1 | . . . 1 Propulsion 3 | . . . 3 Utility . | . . . . Weapon . | . . . . Tool/Special . | . . . . Average Slot Usage (%) 94 | . 97 91 57 Engine 12 | . 14 11 . Treads 25 | . 28 23 . Wheel 1 | . . 2 14 Device 12 | . 14 10 . Storage 14 | . 14 14 14 Energy Gun 5 | . 8 2 14 Ballistic Gun 20 | . 17 25 14 Peak Build Rating 7 | 7 7 7 4 Average Rating 6 | 5 6 6 4 On Entrance 4 | . 7 7 4 Naked Turns . | . . . . Heaviest Build 48 | 14 48 48 . Greatest Support 40 | 40 40 40 . Greatest Overweight (x) 4 | . 1 4 . Average Overweight (x) . | . . 1 . Largest Inventory Capacity 20 | 8 20 20 20 Average Capacity 13 | 7 11 20 20 Most Carried 9 | 6 9 7 4 Average Carried 5 | 3 6 6 4 Final Capacity 20 | 8 20 20 20 Final Carried 7 | 4 7 4 4 Class Distribution -------------------- 100% | Mutant Dominant Class ---------------- Mutant | -10/Materials Mutant | -10/Subcaves Mutant | -9/Recycling Resources | -11 -10 -10 -9 ----------- Run | Yrd Mat Sub Rec Matter Collected 425 | 300 42 83 . Remotely . | . . . . Salvage Created 709 | 254 342 113 . Parts 43 | 22 18 3 . Haulers Intercepted 1 | . 1 . . Recyclers Shooed 1 | . 1 . . Parts Field Recycled . | . . . . Retrieved Matter . | . . . . Parts Self-Destructed 3 | . . 3 . Prevented . | . . . . Kills | -11 -10 -10 -9 ------- Run | Yrd Mat Sub Rec Combat Hostiles Destroyed 14 | . 10 4 . Guns 14 | . 10 4 . Classes Destroyed 7 | 2 4 1 . Tunneler 8 | 8 . . . Hauler 1 | . 1 . . Recycler 1 | 1 . . . Operator 1 | . 1 . . Turret 2 | . . 2 . Swarmer 10 | . 6 4 . Grunt 4 | . 4 . . Best Kill Streak 5 | 3 5 2 . Combat Bots Only 5 | . 5 2 . Max Kills in Single Turn 2 | 2 1 1 . Gunslinging . | . . . . Exploded . | . . . . Melee . | . . . . Uniques/NPCs Destroyed . | . . . . Combat | -11 -10 -10 -9 -------- Run | Yrd Mat Sub Rec Hostile Shots Fired 182 | . 54 122 6 Missed 60 | . 14 46 . Hits 122 | . 40 76 6 Projectile 122 | . 40 76 6 Damage Taken 1017 | . 387 539 91 Core 263 | . 131 87 45 Absorbed by Shields . | . . . . Core Remaining (%) 100 | 100 . . . Volleys Fired 93 | 20 49 21 3 Largest 2 | 2 2 2 2 Hottest 70 | 60 60 70 70 Shots Fired 181 | 40 93 42 6 Gun 181 | 40 93 42 6 Cannon . | . . . . Launcher . | . . . . Special . | . . . . Kinetic 117 | 20 62 32 3 Thermal 13 | . . 10 3 Explosive . | . . . . Electromagnetic 51 | 20 31 . . Robot Hit Streak 10 | 7 6 8 10 Robot Miss Streak 6 | 3 6 1 1 Penetration Max . | . . . . Secondary Targets 2 | . 2 . . Max Gunslinging Chain 1 | . 1 . . Shots Hit Robots 108 | 23 50 30 5 Core Hits 48 | 13 22 11 2 Critical Kills . | . . . . Critical Parts Destroyed . | . . . . Critical Strikes . | . . . . Melee Attacks . | . . . . Impact . | . . . . Slashing . | . . . . Piercing . | . . . . Sneak Attacks . | . . . . Combat Hostiles . | . . . . Follow-up Attacks . | . . . . Damage Inflicted 1248 | 352 561 288 47 Guns 1166 | 270 561 288 47 Cannons . | . . . . Explosions 82 | 82 . . . Melee . | . . . . Ramming . | . . . . Kinetic 525 | 71 245 188 21 Thermal 208 | 82 . 100 26 Explosive . | . . . . Electromagnetic 515 | 199 316 . . Impact . | . . . . Slashing . | . . . . Piercing . | . . . . Highest Corruption . | . . . . Average Corruption . | . . . . Corruption Purged . | . . . . Corruption Blocked . | . . . . Overload Shots . | . . . . Overflow Damage . | . . . . Projectiles . | . . . . Explosions . | . . . . Melee . | . . . . Knockbacks . | . . . . Impact . | . . . . Kinetic . | . . . . Secondary . | . . . . Self-Inflicted Damage . | . . . . Shots . | . . . . Rammed . | . . . . Targets Rammed . | . . . . Kicked . | . . . . Crushed . | . . . . Highest Temperature 40 | 40 40 20 33 Average Temperature 17 | 17 17 7 17 Received Heat Transfer 525 | . 114 384 27 Siege Activations . | . . . . Martial Activations . | . . . . Shielding Activations . | . . . . Robots Disrupted . | . . . . Combat Hostiles . | . . . . Robots Corrupted . | . . . . Combat Hostiles . | . . . . Parts Fried 1 | . 1 . . Impact Corruptions . | . . . . Robots Melted . | . . . . Combat Hostiles . | . . . . Parts Melted . | . . . . Heat Transferred 470 | 100 . 296 74 Parts Sabotaged . | . . . . Parts Stolen . | . . . . Parts Stripped . | . . . . Power Chain Reactions 2 | 2 . . . Alert | -11 -10 -10 -9 ------- Run | Yrd Mat Sub Rec Maximum Alert Level . | . . . . Low Security (%) 100 | 100 100 . 100 Level 1 . | . . . . Level 2 . | . . . . Level 3 . | . . . . Level 4 . | . . . . Level 5 . | . . . . High Security . | . . . . Max Security . | . . . . Peak Influence 142 | 10 142 . 19 Initial 19 | . . . 19 Average 38 | . 70 . 19 Influence Increases 502 | 45 277 180 . Destroy 0b10 Robot/C 320 | . 200 120 . Destroy 0b10 Robot/NC 55 | 45 10 . . Destroy Leader 32 | . 32 . . Successful Hack 20 | . 20 . . Disable Machine 15 | . 15 . . Lose Combat Pursuer 60 | . . 60 . Influence Decreases 493 | 45 163 254 31 Entered New Map 76 | . . 55 21 Time Decay 337 | 45 153 139 . Lost Part 80 | . 10 60 10 Squads Dispatched 2 | . 2 . . Investigation 1 | . 1 . . Extermination . | . . . . Reinforcement 1 | . 1 . . Assault . | . . . . Garrison . | . . . . Intercept . | . . . . Searches Triggered . | . . . . Construction Impeded . | . . . . Haulers Reinforced . | . . . . Active Scanning Responses . | . . . . Cargo Convoy Interrupts . | . . . . Stealth | -11 -10 -10 -9 --------- Run | Yrd Mat Sub Rec Distress Signals . | . . . . Communications Jammed . | . . . . Distress Signals . | . . . . Times Spotted 29 | . 18 10 1 Peak Tracking Total 4 | . 4 4 1 Tactical Retreats 1 | . . 1 . Traps | -11 -10 -10 -9 ------- Run | Yrd Mat Sub Rec Traps Triggered . | . . . . Indirectly . | . . . . Trap Hack Attempts . | . . . . Triggered . | . . . . Disarmed . | . . . . Reprogrammed . | . . . . Reused . | . . . . Traps Extracted . | . . . . Installed . | . . . . Triggered . | . . . . Machines | -11 -10 -10 -9 ---------- Run | Yrd Mat Sub Rec Machines Disabled 1 | . 1 . . Max in Single Turn 1 | . 1 . . Machines Repaired . | . . . . Machines Dismantled . | . . . . Machines Sabotaged . | . . . . Overloaded Fab Kills . | . . . . Hacking | -11 -10 -10 -9 --------- Run | Yrd Mat Sub Rec Machines Accessed 4 | . 4 . . Terminals 3 | . 3 . . Fabricators . | . . . . Repair Stations . | . . . . Recycling Units 1 | . 1 . . Scanalyzers . | . . . . Garrison Access . | . . . . Total Hacks 12 | . 12 . . Successful 5 | . 5 . . Failed 7 | . 7 . . Catastrophic 2 | . 2 . . Database Lockouts . | . . . . Manual 8 | . 8 . . Terminals 10 | . 10 . . Fabricators . | . . . . Repair Stations . | . . . . Recycling Units 2 | . 2 . . Scanalyzers . | . . . . Garrison Access . | . . . . Terminal Hacks 2 | . 2 . . Registered Components 1 | . 1 . . Zone Layout 1 | . 1 . . Fabricator Hacks . | . . . . Repair Station Hacks . | . . . . Recycling Unit Hacks 1 | . 1 . . Retrieve Matter 1 | . 1 . . Scanalyzer . | . . . . Garrison Access Hacks . | . . . . Unauthorized Hacks 2 | . 2 . . Terminals 2 | . 2 . . Botnet 2 | . 2 . . Fabricators . | . . . . Repair Stations . | . . . . Recycling Units . | . . . . Scanalyzers . | . . . . Garrison Access . | . . . . Data Cores Recovered . | . . . . Used . | . . . . Hacking Detections 2 | . 2 . . Full Trace Events . | . . . . Feedback Events . | . . . . Feedback Blocked . | . . . . Robot Schematics Acquired . | . . . . Robots Built . | . . . . Authchips . | . . . . Time . | . . . . Total Robot Build Rating . | . . . . Part Schematics Acquired . | . . . . Parts Built . | . . . . Authchips . | . . . . Time . | . . . . Total Part Build Rating . | . . . . Parts Repaired . | . . . . Time . | . . . . Parts Recycled . | . . . . Recycled Matter . | . . . . Retrieved Matter . | . . . . Retrieved Components . | . . . . Parts Scanalyzed . | . . . . Part Schematics Acquired . | . . . . Parts Damaged . | . . . . Bothacking | -11 -10 -10 -9 ------------ Run | Yrd Mat Sub Rec Used RIF Installer . | . . . . Robots Hacked . | . . . . Non-combat . | . . . . Combat . | . . . . Robot Hacks Applied . | . . . . Relay Couplers Released . | . . . . Fabnet Peak Effective % . | . . . . Robots Rewired . | . . . . Allies Hacked . | . . . . Hacks Repelled . | . . . . Allies | -11 -10 -10 -9 -------- Run | Yrd Mat Sub Rec Total Allies . | . . . . Largest Group . | . . . . Highest-Rated Group . | . . . . Highest-Rated Ally . | . . . . Total Orders . | . . . . Ally Attacks . | . . . . Total Damage . | . . . . Kills . | . . . . Allies Corrupted . | . . . . Allies Melted . | . . . . Intel | -11 -10 -10 -9 ------- Run | Yrd Mat Sub Rec Active Infowar (turns) 683 | 35 409 239 . Seismic 683 | 35 409 239 . Robot Analysis Total . | . . . . Derelict Logs Recovered 1 | . . 1 . Drone Launches . | . . . . Drone Recoveries . | . . . . Exploration | -11 -10 -10 -9 ------------- Run | Yrd Mat Sub Rec Turns Passed 1081 | 353 409 313 6 Spaces Moved 443 | 181 149 113 . Core 14 | 14 . . . Treads 412 | 167 149 96 . Legs . | . . . . Wheels 17 | . . 17 . Hover . | . . . . Flight . | . . . . Fastest Speed 50 | 50 160 140 . Average Speed 177 | 151 173 224 . Slowest Speed 240 | 160 240 240 . Overloaded Moves . | . . . . Propulsion Burnouts . | . . . . Robots Hopped . | . . . . Potential Cave-ins . | . . . . Cave-ins Triggered . | . . . . Exploration Rate (%) 15 | 6 44 9 1 Regions Visited 3 Branch Regions 2 Pre-discovered Areas . | . . . . Known Exits Taken . | . . . . Unknown Exits Taken 3 | 1 1 1 . Scrap Searched . | . . . . Spaces Dug . | . . . . Terrain Destroyed 11 | 11 . . . Melee . | . . . . Projectile . | . . . . AOE 11 | 11 . . . Terrain Rammed . | . . . . Walls Destroyed . | . . . . Machines Disabled . | . . . . Actions | -11 -10 -10 -9 --------- Run | Yrd Mat Sub Rec Total 581 | 223 219 136 3 Wait 15 | 4 11 . . Move 440 | 180 148 112 . Hop . | . . . . Pick Up 17 | 11 6 . . Fast Attach . | . . . . Attach 11 | 7 1 3 . Detach . | . . . . Swap 3 | 1 2 . . Drop 2 | . 2 . . Fire 93 | 20 49 21 3 Melee . | . . . . Ram . | . . . . Kick . | . . . . Crush . | . . . . Escape Stasis . | . . . . Rewire . | . . . . Trap . | . . . . Miscellaneous . | . . . . Route ------- -11/Scrapyard -10/Materials (discovered 2 exits: [*Min] / [*Sub]) -10/Subcaves -9/Recycling History --------- Turn | Location | Event 8 | -11/Scrapyard | Discovered new exit (range 15) 354 | -11/Scrapyard | Entered Materials 355 | -10/Materials | Build established: Mutant 575 | -10/Materials | Discovered new exit (range 16) 709 | -10/Materials | Core integrity fell below 50% 746 | -10/Materials | Discovered new exit (range 6) 763 | -10/Materials | Entered Subcaves 981 | -10/Subcaves | Learned location of 2 exits from Materials 993 | -10/Subcaves | Discovered new exit (range 9) 1043 | -10/Subcaves | Core integrity fell below 20% 1057 | -10/Subcaves | Lost 6 parts (1p2n1u2w) 1076 | -10/Subcaves | Entered Recycling 1082 | -9/Recycling | Destroyed by Y-45 Defender with Heavy Assault Rifle Last Messages --------------- 01000_ Acquired 14 matter. 01002_ S-10 Pest destroyed. 01002_ Seismic Detector destroyed. 01005_ Acquired 7 matter. 01007_ Lgt. Assault Rifle fries itself beyond repair. 01012_ Lgt. Treads destroyed. 01020_ Lgt. Assault Rifle destroyed. 01022_ Ion Engine destroyed. 01022_ Lgt. Assault Rifle destroyed. 01026_ Lgt. Treads destroyed. 01028_ Autobeam Turret destroyed. 01049_ Destroyed Autobeam. 01052_ Autobeam Turret destroyed. 01059_ Acquired 21 matter. 01065_ Acquired 5 matter. LOCATION=UNKNOWN GOAL=ESCAPE 01077_ Y-45 Defender springs to life. 01082_ Wheel destroyed. Map ----- +----------------------------------------------------+ | ?????????????????????????????? | | ?????????????????????????????? | | ?????????????????????????????? | | ?????????????????????????????? | | ?????????????????????????????? | | ?????????????????????????????? | | ?????????????????????????????? | | ?????????????????????????????? | | ?????????????????????????????? | | ?????????????????????????????? | | ???? ??????????????????????? | | ???? ??????????????????????? | | ???? ??????????????????????? | | ???# #?????????????????????? | | ???# #?????????????????????? | | ???# #?????????????????????? | | ???# #?????????????????????? | | ???# #?????????????????????? | | ???# #?????????????????????? | | ???# #?????????????????????? | | ???# #?????????????????????? | | ???# #?????????????????????? | | ??## #?????????????????????? | | ??#Y #?????????????????????? | | ???# #?????????????????????? | | ???# @ #?????????????????????? | | ???# #?????????????????????? | | ???#####?????????????????????? | | ?????????????????????????????? | | ?????????????????????????????? | | ?????????????????????????????? | | ?????????????????????????????? | | ?????????????????????????????? | | ?????????????????????????????? | | ?????????????????????????????? | | ?????????????????????????????? | | ?????????????????????????????? | | ?????????????????????????????? | | ?????????????????????????????? | | ?????????????????????????????? | | | | | | | | | | | | | | | | | | | | | +----------------------------------------------------+ Best States ------------- Heat Dissipation 25 Energy Generation 10 Energy Capacity 250 Matter Stores 300 Matter Capacity 300 Sight Range 16 Terrain Scan Density 10 Evasion (%) 50 Recoil Reduction 2 Item Schematics ----------------- None Robot Schematics ------------------ None Fabricated ------------ Nothing Repaired ---------- Nothing Alien Tech Used ----------------- None Achievements -------------- None Challenges ------------ None Game ------ Seed OpticalMakeshiftPurifier Manual? 0 Play Time 00:06:03 Cumulative 242.3 hours Start 2025.09.01 @ 05:01:40 End 2025.09.01 @ 05:07:38 Sessions 1 Manual Loads 0 Difficulty Rogue Special Mode None Game No. 357 Rogue 357 Adventurer 0 Explorer 0 Win Type - Total 5 Types 4/0/1/0/0/0/0/0/0/0 Lore% 82 Gallery% 77 Achievement% 59 Wizard Run 0 Options --------- Layout 1 ASCII 0 Keyboard 0 Movement Mouse Keybinds 0 Fullscreen 1 Font 24/Smallcaps Map View 50x40 Zoom Use 0% Tactical HUD 1 Map Filters NONE Filters NONE Steam 1 RUN: 286b6a01-b12f-4ab9-9dd0-ee676a1e1fff